{"text_format":"3","workbook":"xlsx","n_sheets":1,"sheets":["Hoja1"],"read":"whole","date_system":"1900"}

{"sheet":"Hoja1","index":0,"n_rows":17,"n_cols":6,"rows_kept":17}
[]
[]
["ITEM","CANT","VALOR UNITARIO ","IVA","VALOR TOTAL ","VALOR TOTAL "]
["Dron ",3,null,{"$f":"+C4*19%","v":0},{"$f":"+D4+C4","v":0},{"$f":"+E4*B4","v":0}]
["Tarjeta de memoria DSI 64 GB",3,null,0,0,0]
["Se requiere U3/Class10/V30 o superior o: \nLexar 1066x 256GB U3 A2 V30 microSDXC\nKingston Canvas GO! Plus 256GB U3 A2 V30 microSDXC Ultra",3,null,0,0,0]
["Juego de Helices adicionales repuesto ",6,null,0,0,0]
["Juego de Helices versión bajo ruido",12,null,0,0,0]
["Baterías de vuelo adicionales",9,null,0,0,0]
["Foco AL",3,null,0,0,0]
["Altavoz AS1",3,null,0,0,0]
["Batería para control VWB37",3,null,0,0,0]
["Dongle 256 4G conectividad 4G ",3,null,0,0,0]
["Capacitación ",7,null,0,0,0]
["Capacitación certificada* (Incluye ante la aeronautica)",7,null,0,0,0]
["Mantenimiento*",7,null,0,0,0]
[{"$nulls":4},"VALOR TOTAL ",{"$f":"SUM(F4:F16)","v":0}]